bitfinex-derivatives/quotes_SOLF0:USTF0_20241017
["timestamp","ask_amount","ask_price","bid_price","bid_amount"]
[1729178138320,4.94,151.49,151.43,3.3026]
[1729178139016,4.94,151.49,151.44,15.85]
[1729178139523,9.1388,151.52,151.45,3.302]
[1729178139719,9.1388,151.52,151.45,6.62565201]
[1729178139929,9.1388,151.52,151.45,3.302]
[1729178140424,9.1388,151.52,151.45,6.57776286]
[1729178141024,24.9888,151.52,151.45,6.57776286]
[1729178141432,3.3016,151.48,151.45,6.57776286]
[1729178143732,3.3011,151.5,151.47,3.3017]
[1729178143928,7.7715,151.52,151.45,19.12576286]
[1729178144334,23.6215,151.52,151.45,3.27576286]
[1729178144538,1.4487,151.51,151.43,15.85]
[1729178144930,3.3019,151.47,151.44,3.3024]
[1729178146031,3.3019,151.47,151.43,15.85]
[1729178146234,3.3019,151.47,151.43,3.3025]
[1729178146431,1.4487,151.51,151.42,5.0]
[1729178146631,15.85,151.5,151.42,3.3027]
[1729178146837,15.85,151.5,151.41,20.85]
[1729178147337,3.302,151.47,151.43,3.3025]
[1729178147538,15.85,151.5,151.43,3.3025]
[1729178148235,3.3021,151.46,151.43,3.3025]
[1729178150139,3.302,151.46,151.42,3.3027]
[1729178150341,3.302,151.46,151.41,20.85]
[1729178150643,15.85,151.46,151.37,19.12576563]
[1729178150832,15.85,151.46,151.37,24.12576563]
[1729178151133,3.3027,151.43,151.39,3.3034]
[1729178151535,2.8054,151.45,151.39,3.3034]
[1729178151738,3.3028,151.42,151.39,3.3034]
[1729178152535,2.8054,151.45,151.39,3.3034]
[1729178152743,3.3031,151.41,151.39,3.3034]
[1729178154042,3.3028,151.43,151.4,3.3031]
[1729178154641,2.8054,151.45,151.4,3.3031]
[1729178154935,3.3029,151.42,151.4,3.3031]
[1729178155942,22.4525,151.5,151.41,15.85]
[1729178156136,5.0,151.49,151.41,15.85]
[1729178156335,3.3021,151.46,151.44,3.3024]
[1729178156534,3.3021,151.46,151.41,20.85]
[1729178156535,5.0,151.49,151.43,15.85]
[1729178157144,15.85,151.52,151.43,15.85]
[1729178157445,3.3019,151.47,151.43,15.85]
[1729178158348,3.3019,151.47,151.44,3.3023]
[1729178158750,5.0,151.5,151.43,15.85]
[1729178159046,3.3017,151.48,151.45,3.3021]
[1729178159348,3.3017,151.48,151.45,6.63290672]
[1729178159544,3.3017,151.48,151.45,3.3021]
[1729178160048,3.3017,151.48,151.45,6.63455872]
[1729178160235,22.4507,151.54,151.45,3.33245872]
[1729178160548,6.4487,151.51,151.46,3.3018]
[1729178161044,3.3014,151.49,151.46,3.3018]
[1729178161241,2.7001,151.55,151.47,15.85]
[1729178161442,1.3573,151.58,151.52,15.85]
[1729178161640,1.3573,151.58,151.52,19.14249564]
[1729178162454,3.3,151.56,151.53,3.3005]
[1729178162645,1.4719,151.6,151.55,15.85]
[1729178162843,1.4719,151.6,151.56,15.85]
[1729178163043,3.2991,151.6,151.56,19.1498]
[1729178163241,3.2991,151.6,151.56,15.85]
[1729178163543,8.2986,151.62,151.59,15.85]
[1729178163746,3.2986,151.62,151.59,15.85]
[1729178163941,2.8412,151.64,151.59,19.11996079]
[1729178164147,3.2984,151.63,151.59,19.11996079]
[1729178164743,3.2984,151.63,151.59,22.41906079]
[1729178165143,2.8412,151.64,151.59,19.11996079]
[1729178165345,3.2987,151.61,151.59,19.11996079]
[1729178165548,2.8412,151.64,151.59,3.26996079]
[1729178165748,2.8412,151.64,151.56,20.85]
[1729178165947,2.8412,151.64,151.56,24.1783933]
[1729178166156,3.2986,151.62,151.57,3.2994]
[1729178166546,2.8412,151.64,151.57,3.2994]
[1729178166846,3.2989,151.61,151.57,3.2994]
[1729178167242,2.8412,151.64,151.56,3.3283933]
[1729178167243,3.2993,151.59,151.56,3.3283933]
[1729178167447,3.2993,151.59,151.55,24.15]
[1729178167753,3.2993,151.59,151.55,20.85]
[1729178167950,3.299,151.6,151.56,3.2998]
[1729178169448,18.6912,151.64,151.57,19.1495]
[1729178169449,3.2987,151.61,151.57,19.1495]
[1729178169755,2.8412,151.64,151.59,15.85]
[1729178169756,1.4719,151.64,151.59,15.85]
[1729178169953,8.298,151.65,151.6,15.85]
[1729178170148,3.298,151.65,151.6,15.85]
[1729178171061,3.298,151.65,151.61,3.2986]
[1729178171363,4.98,151.68,151.62,15.85]
[1729178171364,3.2977,151.66,151.62,15.85]
[1729178171549,3.2977,151.66,151.62,19.1484]
[1729178171750,3.2977,151.66,151.62,15.85]
[1729178171951,3.2973,151.68,151.62,15.85]
[1729178172148,2.7858,151.7,151.66,3.2976]
[1729178172356,6.4486,151.71,151.66,19.1476]
[1729178172557,3.2969,151.7,151.66,22.42486569]
[1729178173061,6.4486,151.71,151.66,19.12726569]
[1729178173961,3.2971,151.69,151.66,3.27726569]
[1729178174147,3.2971,151.69,151.65,3.2977]
[1729178174351,3.2971,151.69,151.65,6.52614482]
[1729178174852,3.2968,151.7,151.66,3.2975]
[1729178175057,6.4486,151.71,151.65,3.22844482]
[1729178175255,6.4486,151.71,151.64,4.98]
[1729178175452,3.297,151.69,151.65,3.2977]
[1729178175757,3.297,151.69,151.65,6.66776697]
[1729178176355,3.2976,151.66,151.65,3.37006697]
[1729178176658,3.2976,151.66,151.62,4.98]
[1729178177161,6.4486,151.71,151.62,4.98]
[1729178178152,2.7638,151.74,151.65,25.32]
[1729178178462,4.98,151.73,151.65,28.62574642]
[1729178178658,7.7438,151.74,151.66,4.98]
[1729178178965,1.3652,151.75,151.68,25.32]
[1729178179571,2.761,151.75,151.66,4.98]
[1729178179870,2.761,151.75,151.67,3.2972]
[1729178180361,28.081,151.75,151.66,3.2975]
[1729178180550,1.4067,151.74,151.65,3.30574642]
[1729178180753,1.4067,151.74,151.63,33.1395]
[1729178180953,3.297,151.69,151.66,3.2976]
[1729178181149,3.297,151.69,151.66,3.24463165]
[1729178181359,4.98,151.72,151.63,6.3987]
[1729178181568,30.3,151.72,151.58,25.32]
[1729178181868,30.3,151.72,151.56,1.4194]
[1729178181869,25.32,151.69,151.56,29.0454]
[1729178182054,3.2986,151.62,151.58,3.2992]
[1729178182256,25.32,151.67,151.57,4.98]
[1729178182659,25.32,151.67,151.59,3.299]
[1729178182660,3.2984,151.63,151.59,3.299]
[1729178183857,3.2986,151.62,151.59,3.299]
[1729178186770,3.2992,151.59,151.56,3.31487319]
[1729178186969,3.2992,151.59,151.53,96.62]
[1729178186970,4.98,151.64,151.55,4.98]
[1729178187170,4.98,151.64,151.56,25.32]
[1729178187863,3.2987,151.61,151.58,3.2992]
[1729178190970,4.98,151.64,151.56,25.32]
[1729178191168,3.2984,151.63,151.6,3.2988]
[1729178193068,4.98,151.64,151.56,28.0734]
[1729178193267,4.98,151.64,151.56,7.7334]
[1729178193870,3.2985,151.63,151.56,7.7334]
[1729178194167,4.98,151.64,151.56,7.7334]
[1729178194374,3.2986,151.62,151.59,3.299]
[1729178194575,6.3302,151.67,151.58,25.32]
[1729178194966,3.2982,151.64,151.61,3.2986]
[1729178195169,25.32,151.74,151.6,30.3]
[1729178195372,9.1662,151.73,151.63,25.32]
[1729178195566,9.1662,151.73,151.63,28.6990976]
[1729178195874,3.2973,151.68,151.64,15.83]
[1729178196076,24.9962,151.73,151.64,15.83]
[1729178196381,9.1662,151.73,151.66,15.83]
[1729178196568,7.728,151.73,151.66,15.83]
[1729178197173,3.2964,151.72,151.68,3.297]
[1729178197572,7.728,151.73,151.68,3.297]
[1729178197788,4.98,151.75,151.68,15.83]
[1729178198287,3.296,151.74,151.7,3.2967]
[1729178198877,3.2962,151.73,151.7,3.2967]
[1729178199185,3.2962,151.73,151.69,3.2969]
[1729178199783,3.2962,151.73,151.65,3.7653]
[1729178199784,3.2966,151.71,151.67,4.98]
[1729178199978,3.2966,151.71,151.67,3.2972]
[1729178200178,17.1644,151.75,151.65,23.7247]
[1729178200382,3.2969,151.7,151.65,23.7247]
[1729178200583,3.2969,151.7,151.67,3.2974]
[1729178201382,3.2966,151.71,151.67,19.1274]
[1729178201584,3.2966,151.71,151.67,15.83]
[1729178201788,3.2966,151.71,151.68,3.2971]
[1729178202287,3.2964,151.72,151.69,15.83]
[1729178202677,1.3344,151.75,151.69,15.83]
[1729178203383,17.1644,151.75,151.67,15.83]
[1729178203581,17.1644,151.75,151.65,7.8947]
[1729178203582,15.83,151.73,151.65,15.83]
[1729178203782,3.2968,151.7,151.66,3.2976]
[1729178205987,4.98,151.72,151.65,25.33]
[1729178205988,3.2966,151.71,151.65,25.33]
[1729178206589,4.98,151.72,151.65,25.33]
[1729178206891,3.2968,151.7,151.67,3.2973]
[1729178208783,4.98,151.72,151.65,25.33]
[1729178208982,6.3144,151.75,151.67,25.33]
[1729178209385,3.2965,151.72,151.69,3.2969]
[1729178210695,3.2966,151.71,151.69,3.2969]
[1729178211492,6.3144,151.75,151.65,25.33]
[1729178212386,3.2967,151.71,151.68,3.2971]
[1729178214098,6.3144,151.75,151.67,25.33]
[1729178214099,3.2963,151.72,151.67,25.33]
[1729178214591,3.2963,151.72,151.69,3.2969]
[1729178215897,3.2963,151.72,151.67,25.33]
[1729178216586,2.8064,151.78,151.68,4.98]
[1729178216786,4.98,151.77,151.68,4.98]
[1729178217199,4.98,151.77,151.71,3.2964]
[1729178217694,3.296,151.74,151.71,3.2964]
[1729178218399,4.98,151.77,151.68,4.98]
[1729178218900,3.2963,151.73,151.69,3.2968]
[1729178219201,4.98,151.77,151.68,4.98]
[1729178219392,3.2959,151.75,151.68,4.98]
[1729178219587,3.2959,151.75,151.7,25.33]
[1729178220287,3.2959,151.75,151.71,3.2964]
[1729178220486,4.98,151.76,151.7,25.33]
[1729178220691,4.98,151.76,151.68,30.31]
[1729178221694,3.296,151.74,151.71,3.2964]
[1729178221888,4.98,151.76,151.68,30.31]
[1729178222399,3.2963,151.72,151.69,3.2968]
[1729178222598,30.31,151.76,151.66,4.98]
[1729178222797,1.4478,151.75,151.66,4.98]
[1729178223196,1.4478,151.75,151.65,25.33]
[1729178223401,1.4478,151.75,151.65,30.31]
[1729178223902,3.2969,151.7,151.65,30.31]
[1729178224113,3.2969,151.7,151.65,33.56564051]
[1729178224592,3.2969,151.7,151.66,3.2974]
[1729178224797,1.4478,151.75,151.65,33.56564051]
[1729178224994,3.2966,151.71,151.69,3.2969]
[1729178225194,4.98,151.76,151.68,25.33]
[1729178225395,2.8064,151.78,151.7,25.33]
[1729178225590,4.98,151.79,151.7,25.33]
[1729178225791,1.4175,151.81,151.73,25.33]
[1729178225999,4.98,151.8,151.73,25.33]
[1729178226309,3.2948,151.79,151.73,25.33]
[1729178226799,3.2951,151.78,151.75,3.2956]
[1729178227103,4.98,151.8,151.73,25.33]
[1729178227298,4.98,151.8,151.73,30.31]
[1729178227491,3.2948,151.79,151.75,3.2956]
[1729178228302,3.2948,151.79,151.77,3.2952]
[1729178229192,3.2948,151.79,151.76,3.2954]
[1729178229999,7.7575,151.82,151.73,4.98]
[1729178230594,3.295,151.78,151.75,3.2955]
[1729178231802,3.2953,151.77,151.74,3.2957]
[1729178232005,3.2953,151.77,151.73,4.98]
[1729178232203,7.7575,151.82,151.75,25.33]
[1729178232204,7.7375,151.82,151.75,25.33]
[1729178232903,3.2947,151.8,151.77,3.2951]
[1729178233705,3.2949,151.79,151.77,3.2951]
[1729178236707,1.4654,151.85,151.78,15.82]
[1729178237009,3.294,151.83,151.8,19.1144]
[1729178237797,3.294,151.83,151.81,3.2943]
[1729178238206,3.294,151.83,151.8,15.82]
[1729178238405,3.294,151.83,151.8,19.1144]
[1729178238810,3.2944,151.81,151.78,27.33178998]
[1729178240715,1.4654,151.85,151.78,27.33178998]
[1729178240716,3.2946,151.8,151.78,27.33178998]
[1729178240904,3.2946,151.8,151.78,22.37178998]
[1729178241507,3.2946,151.8,151.78,19.07698998]
[1729178243511,3.2946,151.8,151.78,22.37198998]
[1729178243808,3.2948,151.79,151.78,3.25698998]
[1729178244016,15.82,151.81,151.72,15.82]
[1729178244316,3.2959,151.74,151.71,4.96]
[1729178244614,20.78,151.79,151.7,19.15169159]
[1729178244912,20.78,151.79,151.7,8.29169159]
[1729178244913,17.2198,151.78,151.7,8.29169159]
[1729178245113,17.2198,151.78,151.71,3.2964]
[1729178245301,17.2198,151.78,151.7,8.29169159]
[1729178245619,17.2198,151.78,151.7,11.58839159]
[1729178246418,3.2962,151.73,151.7,11.58839159]
[1729178246813,17.2198,151.78,151.7,11.58839159]
[1729178246814,3.2964,151.72,151.7,3.33169159]
[1729178247017,3.2964,151.72,151.69,3.2969]
[1729178247215,6.3598,151.78,151.72,3.2962]
[1729178247519,3.2953,151.77,151.72,15.82]
[1729178247708,3.2953,151.77,151.72,20.78]
[1729178247905,3.2953,151.77,151.72,8.23530982]
[1729178248119,3.2953,151.77,151.74,3.2957]
[1729178250213,6.3598,151.78,151.72,8.23530982]
[1729178250422,3.2956,151.76,151.73,3.296]
[1729178250719,6.3598,151.78,151.72,8.23530982]
[1729178251015,3.2958,151.75,151.72,11.53150982]
[1729178251218,3.2958,151.75,151.72,6.57150982]
[1729178251417,30.29,151.74,151.55,229.28329821]
[1729178251621,4.96,151.73,151.58,2.8513]
[1729178251812,25.33,151.71,151.58,7.74517807]
[1729178252010,25.33,151.73,151.6,25.33]
[1729178252212,4.96,151.72,151.61,4.96]
[1729178253015,4.96,151.72,151.63,25.33]
[1729178253215,4.96,151.72,151.64,1.4659]
[1729178253418,3.2969,151.7,151.66,3.2975]
[1729178254014,4.96,151.72,151.64,1.4659]
[1729178254216,4.96,151.72,151.61,4.96]
[1729178254417,3.2973,151.68,151.64,3.2979]
[1729178254920,4.96,151.72,151.61,4.96]
[1729178255124,3.2971,151.69,151.65,3.2977]
[1729178255920,3.2978,151.66,151.63,3.2982]
[1729178256322,4.96,151.72,151.61,4.96]
[1729178256323,25.33,151.7,151.61,4.96]
[1729178256527,25.33,151.68,151.6,3.29949996]
[1729178256728,30.29,151.68,151.6,4.96]
[1729178256926,30.29,151.68,151.6,3.22296194]
[1729178257227,3.2985,151.63,151.59,4.6436]
[1729178257626,3.2985,151.63,151.59,7.87744587]
[1729178259525,30.29,151.64,151.59,3.23384587]
[1729178259827,25.33,151.62,151.53,3.3004]
[1729178260024,1.3635,151.61,151.53,3.26415768]
[1729178260228,25.33,151.6,151.5,1.4532]
[1729178260421,3.3002,151.55,151.51,8.5207]
[1729178260622,5.22,151.58,151.51,5.22]
[1729178260923,5.22,151.58,151.51,8.5209]
[1729178261423,5.22,151.58,151.49,1.3834]
[1729178261616,30.55,151.58,151.49,4.6845]
[1729178261824,30.55,151.58,151.49,1.3834]
[1729178262228,25.33,151.58,151.49,1.3834]
[1729178262529,5.22,151.58,151.49,1.3834]
[1729178262926,3.2999,151.56,151.52,3.3006]
[1729178263232,3.2999,151.56,151.52,6.64120584]
[1729178263424,3.2999,151.56,151.52,3.3006]
[1729178264027,3.2999,151.56,151.52,6.6171062]
[1729178264336,3.2998,151.57,151.53,3.3003]
[1729178265127,3.2998,151.57,151.53,6.57190825]
[1729178265732,26.6935,151.61,151.53,3.27160825]
[1729178265933,6.5835,151.61,151.52,30.55]
[1729178266130,5.22,151.62,151.52,33.92889233]
[1729178266530,3.2991,151.6,151.56,3.2997]
[1729178267131,3.2992,151.59,151.56,3.2997]
[1729178267334,5.22,151.62,151.57,3.2996]
[1729178268239,3.2991,151.6,151.57,3.2996]
[1729178270433,3.2987,151.62,151.56,5.22]
[1729178270642,5.22,151.64,151.56,5.22]
[1729178270840,3.2983,151.63,151.6,3.2989]
[1729178271641,5.22,151.65,151.61,3.2987]
[1729178272249,3.2981,151.64,151.6,6.53534292]
[1729178272546,5.22,151.65,151.57,25.33]
[1729178273045,25.33,151.73,151.6,25.33]
[1729178273242,1.04151093,151.72,151.62,25.33]
[1729178273443,3.2969,151.7,151.62,25.33]
[1729178273642,3.2969,151.7,151.63,2.7518]
[1729178273838,5.22,151.72,151.64,5.22]
[1729178274949,8.5165,151.72,151.66,3.2975]
[1729178275246,5.22,151.72,151.64,30.55]
[1729178275733,5.22,151.72,151.68,3.297]
[1729178276139,5.22,151.72,151.68,6.58186389]
[1729178276943,8.5165,151.72,151.69,3.2969]
[1729178277138,25.33,151.77,151.66,25.33]
[1729178277338,5.22,151.76,151.66,25.33]
[1729178277648,3.2962,151.73,151.69,3.297]
[1729178277847,3.2962,151.73,151.69,6.67420019]
[1729178278046,3.2962,151.73,151.69,3.297]
[1729178278647,3.2962,151.73,151.69,6.6201175]
[1729178278845,3.2963,151.72,151.69,6.6201175]
[1729178279149,5.22,151.76,151.71,3.2965]
[1729178279544,5.22,151.76,151.71,6.57499363]
[1729178279946,3.296,151.74,151.71,6.57499363]
[1729178280150,5.22,151.76,151.71,3.27849363]
[1729178280352,5.22,151.76,151.7,3.2967]
[1729178280545,3.296,151.74,151.7,3.23463529]
[1729178280846,1.3549,151.77,151.66,25.33]
[1729178281050,6.5749,151.77,151.66,25.33]
[1729178281250,3.2957,151.75,151.66,25.33]
[1729178281452,3.2957,151.75,151.72,3.2962]
[1729178281649,3.2957,151.75,151.72,6.64724127]
[1729178282649,3.2961,151.73,151.72,3.35104127]
[1729178282948,31.9049,151.77,151.64,25.33]
[1729178283252,25.33,151.75,151.65,5.22]
[1729178283951,3.2964,151.72,151.69,3.2969]
[1729178284149,3.2964,151.72,151.69,6.64651029]
[1729178285050,6.5749,151.77,151.69,3.34961029]
[1729178285256,6.5749,151.77,151.69,5.22]
[1729178285555,3.2957,151.75,151.73,3.296]
[1729178286351,3.2957,151.75,151.72,3.2962]
[1729178287753,3.296,151.74,151.71,3.2964]
[1729178287957,6.5749,151.77,151.69,8.45058191]
[1729178287958,31.9049,151.77,151.69,8.45058191]
[1729178288350,25.33,151.75,151.69,3.23058191]
[1729178288550,25.33,151.75,151.65,5.22]
[1729178290051,3.2968,151.7,151.67,3.2973]
[1729178291457,5.22,151.73,151.67,3.2973]
[1729178291953,3.2969,151.7,151.68,3.30498064]
[1729178292160,3.2969,151.7,151.63,2.7518]
[1729178292161,30.55,151.73,151.66,3.2974]
[1729178292356,1.396,151.72,151.63,2.7518]
[1729178292555,3.2974,151.67,151.63,2.7518]
[1729178292750,5.12,151.69,151.61,109.95597777]
[1729178292956,5.12,151.69,151.54,6.6005]
[1729178292957,26.7812,151.68,151.56,25.33]
[1729178293158,26.7812,151.68,151.58,5.12]
[1729178294158,3.2981,151.64,151.61,3.2986]
[1729178294359,3.2981,151.64,151.61,6.63062469]
[1729178294659,26.7812,151.68,151.61,3.33202469]
[1729178294953,3.2985,151.62,151.58,5.12]
[1729178296153,5.12,151.65,151.58,5.12]
[1729178296361,3.2984,151.63,151.58,5.12]
[1729178296964,3.2984,151.63,151.6,3.2988]
[1729178297155,3.2984,151.63,151.6,6.61311318]
[1729178299064,3.2987,151.61,151.6,3.31431318]
[1729178299255,30.45,151.65,151.55,5.12]
[1729178299454,2.9047,151.64,151.55,5.12]
[1729178299761,25.33,151.63,151.54,5.12]
[1729178300463,5.12,151.62,151.54,5.12]
[1729178300862,3.2988,151.61,151.58,3.2992]
[1729178302365,5.12,151.63,151.54,5.12]
[1729178302563,3.2985,151.62,151.59,3.299]
[1729178303061,6.2029,151.64,151.61,3.2986]
[1729178303270,8.4182,151.64,151.62,3.28405981]
[1729178303765,3.2983,151.63,151.62,3.28405981]
[1729178303965,25.33,151.67,151.56,25.33]
[1729178304159,5.12,151.67,151.58,25.33]
[1729178304360,5.12,151.67,151.59,7.8901]
[1729178304557,5.12,151.67,151.63,3.2982]
[1729178304761,3.2981,151.64,151.63,3.35478389]
[1729178304962,3.2981,151.64,151.59,5.12]
[1729178305161,3.2981,151.64,151.61,3.2985]
[1729178305365,3.2981,151.64,151.61,3.27296793]
[1729178305566,4.2007,151.68,151.59,5.12]
[1729178305869,7.9112,151.68,151.65,3.2977]
[1729178306059,7.9112,151.68,151.66,3.2254619]
[1729178306261,6.5712,151.68,151.66,3.2974]
[1729178306458,26.7927,151.72,151.65,3.35544369]
[1729178306459,5.12,151.71,151.65,3.35544369]
[1729178306770,3.2969,151.7,151.67,3.2972]
[1729178306967,5.12,151.71,151.63,33.74441163]
[1729178307667,3.2969,151.7,151.67,3.2973]
[1729178314665,5.12,151.71,151.63,33.74441163]
[1729178314875,3.2973,151.68,151.65,3.2978]
[1729178315469,5.12,151.71,151.65,3.2978]
[1729178315668,5.12,151.71,151.64,3.2979]
[1729178316775,3.2973,151.68,151.65,3.2978]
[1729178317577,5.12,151.67,151.63,3.29441163]
[1729178317875,15.83,151.66,151.55,20.95]
[1729178318170,15.83,151.64,151.55,20.95]
[1729178318378,5.12,151.63,151.55,20.95]
[1729178318685,15.83,151.62,151.53,23.7485]
[1729178319165,3.2992,151.59,151.56,3.2997]
[1729178319572,15.83,151.62,151.53,23.7485]
[1729178319880,3.2991,151.6,151.56,3.2996]
[1729178320474,3.2991,151.6,151.57,3.2995]
[1729178321169,3.2988,151.61,151.58,3.2992]
[1729178321369,4.2186,151.66,151.54,25.36]
[1729178321577,5.08,151.65,151.54,25.36]
[1729178321879,3.2985,151.63,151.59,3.299]
[1729178322077,4.2186,151.66,151.57,30.44]
[1729178322284,4.74,151.66,151.59,25.36]
[1729178322474,1.4422,151.66,151.59,25.36]
[1729178323176,3.2983,151.63,151.6,3.2987]
[1729178323382,3.2983,151.63,151.6,6.59617868]
[1729178324284,3.2983,151.63,151.61,3.2987]
[1729178325079,3.2983,151.63,151.61,6.63160025]
[1729178325386,3.2985,151.62,151.61,3.33290025]
[1729178325577,3.2985,151.62,151.57,30.44]
[1729178326478,3.2985,151.62,151.6,3.2989]
[1729178326873,3.2985,151.62,151.6,6.60804566]
[1729178327079,3.2985,151.62,151.6,3.2989]
[1729178327485,3.2984,151.63,151.6,3.2989]
[1729178327685,3.2984,151.63,151.6,6.60518877]
[1729178327873,3.2984,151.63,151.6,3.2989]
[1729178328586,3.2984,151.63,151.6,6.64247154]
[1729178328790,1.4422,151.66,151.6,3.34357154]
[1729178329084,1.4422,151.66,151.59,25.36]
[1729178329486,3.2981,151.64,151.61,3.2987]
[1729178329681,1.4422,151.66,151.61,3.30166966]
[1729178329986,3.2984,151.63,151.6,3.2988]
[1729178330188,1.4422,151.66,151.6,6.66051802]
[1729178330486,1.4422,151.66,151.6,3.2988]
[1729178331085,3.2984,151.63,151.6,6.59947979]
[1729178333389,1.4422,151.66,151.6,6.59947979]
[1729178333688,3.2985,151.62,151.6,6.59947979]
[1729178335482,2.7835,151.66,151.6,3.30067979]
[1729178335788,25.36,151.65,151.54,5.1]
[1729178336086,25.36,151.65,151.57,3.2995]
[1729178336087,3.2993,151.59,151.57,3.2995]
[1729178336283,5.1,151.61,151.54,5.1]
[1729178336887,3.2995,151.58,151.55,3.2998]
[1729178337081,5.1,151.61,151.52,3.37889233]
[1729178337284,5.1,151.61,151.51,5.1]
[1729178337485,3.2994,151.58,151.55,3.3]
[1729178340286,30.46,151.61,151.51,8.36964343]
[1729178340495,25.36,151.58,151.51,3.26964343]
[1729178340677,25.36,151.58,151.5,1.3752]
[1729178340882,9.3345,151.6,151.5,4.74848119]
[1729178341084,9.3345,151.6,151.5,1.3752]
[1729178341284,3.3002,151.55,151.52,3.3006]
[1729178341493,3.3002,151.55,151.53,3.22541133]
[1729178341687,5.1,151.56,151.52,3.3006]
[1729178341892,3.3004,151.54,151.51,3.3008]
[1729178342491,3.3005,151.53,151.5,6.66536939]
[1729178342693,15.86,151.53,151.5,3.36436939]
[1729178342890,15.86,151.53,151.45,1.3416]
[1729178343089,5.1,151.52,151.45,1.3416]
[1729178343388,5.1,151.52,151.45,4.71995793]
[1729178343598,15.86,151.51,151.42,15.86]
[1729178344182,3.3017,151.48,151.42,15.86]
[1729178344798,3.3019,151.47,151.43,3.3024]
[1729178345096,5.1,151.48,151.41,1.4553]
[1729178345290,3.3028,151.43,151.4,3.3032]
[1729178345488,15.86,151.45,151.37,3.22112047]
[1729178345686,15.86,151.45,151.36,20.96]
[1729178345894,5.1,151.44,151.36,15.86]
[1729178346194,5.1,151.44,151.35,6.04116256]
[1729178346393,3.3032,151.41,151.36,3.3041]
[1729178346596,15.86,151.43,151.36,3.3041]
[1729178347793,7.9055,151.44,151.38,3.3036]
[1729178347999,7.9055,151.44,151.35,6.04116256]
[1729178348189,3.3032,151.41,151.35,6.04116256]
[1729178348698,3.3032,151.41,151.37,3.3038]
[1729178349697,5.1,151.43,151.39,3.3035]
[1729178349901,5.1,151.43,151.35,6.04116256]
[1729178350805,3.303,151.42,151.38,3.3036]
[1729178351497,3.3033,151.4,151.35,6.04116256]
[1729178351900,3.3033,151.4,151.36,3.304]
[1729178352096,3.3031,151.41,151.36,3.304]
[1729178352395,5.1,151.43,151.36,3.304]
[1729178352596,3.3036,151.39,151.36,3.304]
[1729178352800,5.1,151.43,151.36,3.304]
[1729178353194,3.3032,151.41,151.37,3.3038]
[1729178353493,5.1,151.43,151.37,3.3038]
[1729178354297,5.1,151.43,151.35,4.61136256]
[1729178354298,3.303,151.42,151.35,4.61136256]
[1729178354501,3.303,151.42,151.38,3.3035]
[1729178354693,3.303,151.42,151.35,4.61136256]
[1729178355397,5.1,151.43,151.37,3.3038]
[1729178355398,3.3032,151.41,151.37,3.3038]
[1729178355600,5.1,151.43,151.37,3.3038]
[1729178356196,3.3033,151.4,151.37,3.3038]
[1729178359603,5.1,151.43,151.35,4.61136256]
[1729178360098,3.3038,151.38,151.35,6.56536256]